bitfinex/quotes_SOLUSD_20251226
["timestamp","ask_amount","ask_price","bid_price","bid_amount"]
[1766745765861,2.17214819,123.67,123.62,22.82901886]
[1766745766040,2.17214819,123.67,123.62,25.00116705]
[1766745767046,10.2585009,123.67,123.62,25.00116705]
[1766745769263,10.2585009,123.67,123.62,22.82901886]
[1766745769472,10.2585009,123.67,123.62,25.00116705]
[1766745769658,10.25752982,123.68,123.62,25.00116705]
[1766745769967,2.17214819,123.67,123.62,25.00116705]
[1766745773473,10.25850278,123.67,123.62,10.26116705]
[1766745773669,10.25850278,123.67,123.62,25.00116705]
[1766745773852,8.08635459,123.67,123.62,25.00116705]
[1766745776477,8.08635459,123.67,123.62,8.08901886]
[1766745776680,2.17214819,123.67,123.62,25.00116705]
[1766745776854,2.17214819,123.68,123.62,25.00116705]
[1766745777178,8.08472794,123.69,123.62,22.82901886]
[1766745777386,8.08472794,123.69,123.65,12.60982115]
[1766745777871,8.08432736,123.7,123.65,12.60982115]
[1766745778056,8.08361739,123.71,123.66,2.17214819]
[1766745778366,10.25576558,123.71,123.65,25.17767296]
[1766745778572,10.25629238,123.7,123.65,35.43697647]
[1766745780367,10.25629238,123.7,123.65,18.52482828]
[1766745780668,2.17214819,123.68,123.65,25.17767296]
[1766745781852,2.17214819,123.68,123.65,10.43767296]
[1766745782252,2.17214819,123.67,123.65,10.43767296]
[1766745782475,2.17214819,123.68,123.65,10.43767296]
[1766745784373,2.17214819,123.68,123.65,10.43767296]
[1766745786082,2.17214819,123.69,123.65,18.52494737]
[1766745788073,10.25687714,123.69,123.65,18.52494737]
[1766745805188,59.21645369,123.71,123.65,18.52494737]
[1766745805189,8.08407437,123.7,123.65,18.52494737]
[1766745805395,2.17214819,123.69,123.65,18.52494737]
[1766745806194,10.25622256,123.7,123.65,20.69709556]
[1766745807095,2.17214819,123.69,123.65,20.69709556]
[1766745807290,2.17214819,123.69,123.65,18.52494737]
[1766745807679,10.25622256,123.7,123.65,20.69709556]
[1766745808191,2.17214819,123.69,123.65,20.69709556]
[1766745808675,2.17214819,123.69,123.65,18.52494737]
[1766745809998,3.39247086,123.69,123.65,18.52494737]
[1766745817200,3.39247086,123.69,123.65,33.26494737]
[1766745818403,8.08407437,123.7,123.65,33.26494737]
[1766745818604,3.39247086,123.69,123.65,33.26494737]
[1766745823112,8.08407437,123.7,123.65,33.26494737]
[1766745823302,3.39247086,123.69,123.65,33.26494737]
[1766745826722,4.10247086,123.69,123.66,0.68]
[1766745840931,0.71,123.69,123.66,0.68]
[1766745841226,4.10247086,123.69,123.66,0.68]
[1766745844220,0.71,123.69,123.67,0.68]
[1766745852027,4.10247086,123.69,123.67,0.68]
[1766745853948,0.71,123.69,123.67,0.68]
[1766745857650,3.39247086,123.7,123.67,0.68]
[1766745857947,4.09247086,123.7,123.67,0.68]
[1766745862757,3.39247086,123.7,123.66,8.08627604]
[1766745866454,11.47662231,123.7,123.66,8.08627604]
[1766745871953,2.17122244,123.7,123.66,8.08627604]
[1766745873964,10.25545379,123.7,123.66,8.08627604]
[1766745874153,10.25545379,123.7,123.65,33.26475252]
[1766745876471,2.17122244,123.7,123.65,33.26475252]
[1766745876841,2.88122244,123.69,123.66,0.72]
[1766745877044,0.71,123.69,123.66,0.72]
[1766745877244,0.71,123.71,123.66,0.72]
[1766745877444,0.71,123.69,123.66,0.72]
[1766745877680,0.71,123.72,123.68,2.17122244]
[1766745877974,0.71,123.72,123.66,70.7862402]
[1766745878162,2.88122244,123.69,123.66,23.54402469]
[1766745878351,2.88122244,123.69,123.66,15.46]
[1766745878744,2.88122244,123.69,123.67,0.72]
[1766745879450,0.71,123.71,123.67,0.72]
[1766745879642,2.88122244,123.71,123.67,0.72]
[1766745879847,0.71,123.7,123.67,8.08601784]
[1766745880066,0.71,123.7,123.68,0.72]
[1766745880569,8.08328981,123.72,123.68,0.72]
[1766745880756,8.33860199,123.71,123.68,0.72]
[1766745880939,2.88122244,123.71,123.68,0.72]
[1766745883273,0.71,123.7,123.67,8.08601784]
[1766745883460,0.71,123.7,123.67,8.80601784]
[1766745883868,2.17122244,123.71,123.66,8.08644319]
[1766745883869,2.85122244,123.69,123.66,8.08644319]
[1766745884054,0.68,123.68,123.66,23.47644319]
[1766745884255,2.85122244,123.69,123.66,23.47644319]
[1766745884452,0.68,123.69,123.66,23.47644319]
[1766745884664,0.68,123.69,123.67,0.65]
[1766745892882,10.25466699,123.71,123.67,0.65]
[1766745893189,0.69,123.7,123.67,8.73567438]
[1766745895359,0.69,123.7,123.67,8.76567438]
[1766745895565,0.69,123.7,123.68,0.68]
[1766745895969,10.25402747,123.72,123.68,0.68]
[1766745896169,6.14626206,123.71,123.68,0.68]
[1766745896363,0.69,123.71,123.68,0.68]
[1766745901701,0.69,123.7,123.68,0.68]
[1766745903605,0.1,123.73,123.7,0.68]
[1766745903786,0.1,123.73,123.71,0.68]
[1766745904569,0.79,123.73,123.71,0.68]
[1766745906711,0.1,123.73,123.7,24.99505908]
[1766745907099,0.1,123.73,123.7,22.82383664]
[1766745907305,0.1,123.73,123.7,24.99505908]
[1766745907685,0.1,123.73,123.7,22.82383664]
[1766745909301,2.17122244,123.72,123.69,33.26223345]
[1766745910278,2.27122244,123.73,123.69,33.26223345]
[1766745915214,0.1,123.73,123.69,33.26223345]
[1766745915384,2.27122244,123.73,123.69,33.26223345]
[1766745915901,0.1,123.73,123.69,35.43345589]
[1766745916608,0.1,123.73,123.7,2.17122244]
[1766745918604,0.1,123.73,123.71,2.17122244]
[1766745919808,0.1,123.73,123.7,10.25465225]
[1766745925516,0.1,123.73,123.7,8.08342981]
[1766745926623,0.1,123.73,123.71,14.74]
[1766745928017,0.1,123.73,123.7,8.08342981]
[1766745928018,0.1,123.73,123.7,14.74]
[1766745928309,2.27122244,123.73,123.7,14.74]
[1766745931924,3.4905674,123.73,123.7,14.74]
[1766745936122,0.1,123.73,123.7,14.74]
[1766745946942,0.1,123.73,123.7,26.21457902]
[1766745948332,0.1,123.73,123.72,10.43767296]
[1766745948525,0.1,123.73,123.72,13.82824036]
[1766745948828,0.1,123.73,123.72,10.43767296]
[1766745949238,0.1,123.75,123.72,21.91100789]
[1766745953045,1e-08,123.75,123.74,3.3905674]
[1766745953221,0.1,123.79,123.76,10.43767296]
[1766745953414,0.1,123.79,123.76,13.82824036]
[1766745953616,3.4905674,123.79,123.76,10.43767296]
[1766745953824,3.3905674,123.77,123.74,14.74]
[1766745954134,3.3905674,123.77,123.73,25.17767296]
[1766745954332,3.3905674,123.78,123.73,33.25957729]
[1766745954538,0.1,123.79,123.74,3.3905674]
[1766745954715,0.1,123.79,123.75,3.3905674]
[1766745955852,3.4905674,123.79,123.75,3.3905674]
[1766745956051,3.4905674,123.79,123.74,11.47140433]
[1766745956550,3.4905674,123.79,123.75,8.08067523]
[1766745956839,0.1,123.79,123.75,8.08067523]
[1766745957419,0.1,123.79,123.75,11.47124263]
[1766745958131,3.4905674,123.79,123.74,11.47202852]
[1766745961043,3.4905674,123.79,123.75,14.74]
[1766745962035,3.3905674,123.78,123.74,22.82146112]
[1766745962936,3.4905674,123.79,123.74,26.21202852]
[1766745963137,0.1,123.79,123.75,3.3905674]
[1766745963344,3.4905674,123.79,123.74,26.21202852]
[1766745963521,0.1,123.79,123.74,26.21202852]
[1766745963739,3.4905674,123.79,123.74,26.21202852]
[1766745965054,0.1,123.79,123.74,46.41568134]
[1766745965226,0.1,123.79,123.75,3.3905674]
[1766745966055,0.1,123.79,123.75,11.470863]
[1766745968824,0.1,123.79,123.76,3.3905674]
[1766745969031,0.1,123.79,123.76,13.82824036]
[1766745969558,0.1,123.8,123.78,3.3905674]
[1766745969737,0.1,123.81,123.78,13.82824036]
[1766745970134,0.1,123.81,123.78,21.90651659]
[1766745971652,0.1,123.81,123.79,3.3905674]
[1766745973155,0.1,123.81,123.8,14.72]
[1766745975344,0.1,123.83,123.8,26.18811182]
[1766745978339,0.1,123.83,123.8,22.79754442]
[1766745979943,0.1,123.83,123.8,26.18811182]
[1766745980962,0.1,123.83,123.79,8.07819694]
[1766745981161,0.1,123.83,123.8,18.1105674]
[1766745983467,0.1,123.83,123.8,11.46783469]
[1766745983669,0.1,123.83,123.81,14.72]
[1766745986770,0.1,123.83,123.79,11.46853509]
[1766745986952,0.1,123.83,123.8,14.72]
[1766745994076,0.1,123.83,123.8,22.79753929]
[1766745994274,0.1,123.83,123.8,24.96360515]
[1766745994462,0.1,123.83,123.8,22.79753929]
[1766745995378,0.1,123.83,123.8,24.96360515]
[1766745996797,0.1,123.83,123.8,22.79753929]
[1766746004368,0.1,123.83,123.8,24.96360515]
[1766746004770,0.1,123.83,123.8,22.79753929]
[1766746009098,0.1,123.83,123.8,24.96360515]
[1766746015201,0.1,123.86,123.83,12.60373882]
[1766746015402,0.1,123.86,123.83,27.32373882]
[1766746015575,0.1,123.86,123.84,2.16606586]
[1766746015779,20.17796228,123.9,123.85,2.16606586]
[1766746015780,8.07102502,123.9,123.85,2.16606586]
[1766746016299,14.45242408,123.91,123.83,45.33563524]
[1766746016605,8.0704649,123.91,123.87,2.16606586]
[1766746016804,10.23653076,123.91,123.86,24.95940787]
[1766746016990,8.0704649,123.91,123.87,2.16606586]
[1766746017189,10.23653076,123.91,123.86,24.95940787]
[1766746017804,8.0704649,123.91,123.86,35.39708083]
[1766746017991,10.23653076,123.91,123.86,35.39708083]
[1766746018300,10.23653076,123.91,123.86,33.23101497]
[1766746018506,10.23653076,123.91,123.86,35.39708083]
[1766746020107,2.16606586,123.91,123.86,35.39708083]
[1766746021307,14.95322594,123.92,123.86,33.23101497]
[1766746021612,2.16606586,123.9,123.86,33.23101497]
[1766746022207,8.07037755,123.91,123.86,35.39708083]
[1766746022208,10.23644341,123.91,123.86,35.39708083]
[1766746024613,2.16606586,123.9,123.86,33.23101497]
[1766746024924,2.16606586,123.89,123.86,33.23113804]
[1766746025114,14.95330342,123.92,123.86,35.3972039]
[1766746025415,2.16606586,123.91,123.86,35.3972039]
[1766746025587,17.11936928,123.92,123.87,2.16606586]
[1766746025786,2.16606586,123.88,123.85,8.07037755]
[1766746025981,2.16606586,123.86,123.8,20.19374973]
[1766746026209,2.16606586,123.86,123.82,8.07577153]
[1766746027393,2.16606586,123.87,123.82,8.07577153]
[1766746027594,2.16606586,123.87,123.82,22.79577153]
[1766746027794,2.16606586,123.87,123.82,33.23344449]
[1766746030314,8.07248051,123.88,123.82,33.23344449]
[1766746030494,2.16606586,123.87,123.82,33.23344449]
[1766746031113,2.16606586,123.87,123.82,35.39951035]
[1766746031316,8.07167648,123.89,123.82,35.39951035]
[1766746031513,2.16606586,123.87,123.82,96.89951035]
[1766746031700,2.16606586,123.88,123.83,2.16606586]
[1766746031915,8.07037365,123.91,123.85,2.16606586]
[1766746032116,2.16606586,123.9,123.85,27.32373882]
[1766746032423,10.23643951,123.91,123.85,27.32373882]
[1766746032815,8.07037365,123.91,123.85,27.32373882]
[1766746033004,10.23643951,123.91,123.86,2.16606586]
[1766746033419,8.07037365,123.91,123.86,2.16606586]
[1766746033620,10.23643951,123.91,123.86,2.16606586]
[1766746037005,10.23643951,123.91,123.85,35.39796019]
[1766746037207,10.23643951,123.91,123.83,105.91398511]
[1766746037208,6.88347393,123.92,123.86,8.07350758]
[1766746037426,6.88347393,123.92,123.87,10.43767296]
[1766746037427,2.16606586,123.91,123.87,10.43767296]
[1766746038303,17.11934874,123.92,123.87,20.67655286]
[1766746038724,14.95328288,123.92,123.87,20.67655286]
[1766746039627,14.95328288,123.92,123.88,2.16606586]
[1766746041402,14.95328288,123.92,123.89,2.16606586]
[1766746041701,14.95328288,123.92,123.88,2.16606586]
[1766746042125,14.95328288,123.92,123.87,20.67655286]
[1766746043216,14.95328288,123.92,123.87,18.510487]
[1766746043622,6.88347393,123.92,123.87,38.69293634]
[1766746043821,17.11949837,123.92,123.87,10.43767296]
[1766746044021,14.95343251,123.92,123.87,33.23021698]
[1766746044629,6.88347393,123.92,123.87,33.23021698]
[1766746044926,9.04953979,123.92,123.87,33.23021698]
[1766746046818,9.04953979,123.92,123.87,18.51021698]
[1766746047218,17.11934974,123.92,123.87,18.51021698]
[1766746047420,2.16606586,123.91,123.87,10.43767296]
[1766746047798,2.16606586,123.89,123.87,10.43767296]
[1766746048206,2.16606586,123.89,123.85,22.79416466]
[1766746048407,2.16606586,123.89,123.86,10.43767296]
[1766746050937,2.16606586,123.89,123.85,22.79416466]
[1766746053537,8.07119207,123.9,123.85,14.72]
[1766746053538,2.16606586,123.88,123.85,14.72]
[1766746053928,2.16606586,123.88,123.84,18.51246485]
[1766746053929,3.383214,123.86,123.84,18.51246485]
[1766746054536,3.383214,123.87,123.84,18.51246485]
[1766746054737,3.383214,123.85,123.82,8.07592957]
[1766746057241,3.383214,123.85,123.81,8.07689201]
[1766746059832,3.383214,123.86,123.81,8.07689201]
[1766746063033,3.383214,123.86,123.81,69.57689201]
[1766746063942,3.383214,123.85,123.81,69.57689201]
[1766746064711,3.383214,123.84,123.81,69.57689201]
[1766746066239,3.383214,123.84,123.8,94.73502498]
[1766746066528,3.383214,123.83,123.8,94.73502498]
[1766746067737,3.383214,123.84,123.8,94.73502498]
[1766746068229,3.383214,123.84,123.8,33.23502498]
[1766746070835,8.0740626,123.86,123.8,33.23502498]
[1766746071037,3.383214,123.84,123.8,33.23502498]
[1766746071853,3.383214,123.83,123.8,18.51502498]
[1766746073242,28.25086769,123.89,123.8,18.51502498]
[1766746073451,3.383214,123.83,123.8,18.51502498]
[1766746078554,3.383214,123.84,123.8,18.51502498]
[1766746080337,11.45709466,123.86,123.8,80.01502498]
[1766746080552,3.383214,123.85,123.8,80.01502498]
[1766746085471,3.383214,123.85,123.8,100.20888604]
[1766746086549,3.383214,123.85,123.8,38.70888604]
[1766746088349,3.383214,123.84,123.8,38.70888604]
[1766746090349,8.07350433,123.87,123.8,38.70888604]
[1766746090679,3.383214,123.84,123.8,38.70888604]
[1766746092485,3.383214,123.84,123.8,100.20888604]
[1766746095187,3.383214,123.85,123.8,100.20888604]
[1766746096685,8.07350433,123.87,123.8,103.59210004]
[1766746096886,3.383214,123.86,123.8,103.59210004]
[1766746098283,3.383214,123.85,123.8,103.59210004]
[1766746098458,3.383214,123.85,123.8,100.20888604]
[1766746101915,3.383214,123.86,123.8,120.39063359]
[1766746102486,3.383214,123.84,123.8,38.69677253]
[1766746102783,3.383214,123.84,123.8,18.51502498]
[1766746103123,35.05746297,123.88,123.81,3.383214]
[1766746103124,3.383214,123.87,123.81,3.383214]
[1766746104183,3.383214,123.87,123.82,8.0762397]
[1766746105588,8.07232805,123.88,123.82,8.0762397]
[1766746105792,3.383214,123.91,123.86,13.82088696]
[1766746106294,3.383214,123.91,123.86,21.89402037]
[1766746108269,3.383214,123.88,123.85,24.22382817]
[1766746108670,3.383214,123.88,123.84,18.51221793]
[1766746111101,3.383214,123.87,123.84,18.51221793]
[1766746111303,3.383214,123.87,123.84,8.07454497]
[1766746112708,8.07214352,123.9,123.86,10.43767296]
[1766746112912,3.383214,123.9,123.86,10.43767296]
[1766746113088,3.383214,123.89,123.85,10.43767296]
[1766746114505,3.383214,123.89,123.85,18.5113609]
[1766746114804,14.95335289,123.92,123.85,38.69706941]
[1766746114981,3.383214,123.9,123.85,42.08028341]
[1766746116100,2.16389716,123.9,123.85,40.86096657]
[1766746117401,2.16389716,123.9,123.85,38.69706941]
[1766746117603,2.16389716,123.9,123.85,40.86096657]
[1766746119000,6.88347393,123.92,123.87,2.16389716]
[1766746119191,9.04737109,123.92,123.87,2.16389716]
[1766746119729,2.16389716,123.91,123.86,51.04795492]
[1766746119889,2.16389716,123.91,123.86,53.21185208]
[1766746121202,2.16389716,123.9,123.86,51.04795492]
[1766746121505,2.16389716,123.9,123.86,36.32795492]
[1766746121706,6.88347393,123.92,123.86,36.32795492]
[1766746121908,2.16389716,123.9,123.86,36.32795492]
[1766746122092,2.16389716,123.9,123.86,28.25748626]
[1766746122910,2.16389716,123.91,123.86,30.42138342]
[1766746124403,2.16389716,123.91,123.86,28.25748626]
[1766746124596,2.16389716,123.91,123.86,30.42138342]
[1766746130414,14.95364214,123.92,123.86,30.42138342]
[1766746130714,2.16389716,123.91,123.86,30.42138342]
[1766746132905,2.16389716,123.91,123.86,10.23730463]
[1766746133512,10.2343238,123.91,123.86,10.23730463]
[1766746134922,2.16389716,123.89,123.85,33.22730259]
[1766746135104,2.16389716,123.87,123.83,8.07514133]
[1766746135296,2.16389716,123.85,123.8,8.07694412]
[1766746135619,14.72,123.88,123.82,23.76737109]
[1766746135804,2.16389716,123.87,123.82,2.16389716]
[1766746136309,2.16389716,123.86,123.82,10.24004931]
[1766746137018,6.88347393,123.92,123.83,25.15767296]
[1766746137203,2.16389716,123.91,123.86,2.16389716]
[1766746137813,2.16389716,123.91,123.85,2.16389716]
[1766746138014,2.16389716,123.91,123.86,16.88389716]
[1766746138200,2.16389716,123.91,123.86,24.95749885]
[1766746139213,10.23447606,123.91,123.86,24.95749885]
[1766746140420,8.0705789,123.91,123.86,24.95749885]
[1766746140620,14.95338262,123.92,123.86,24.95749885]
[1766746140827,17.11727978,123.92,123.87,2.16389716]
[1766746143504,2.16389716,123.91,123.86,22.79360169]
[1766746143711,2.16389716,123.91,123.86,24.95749885]
[1766746144320,2.16389716,123.89,123.86,14.72]
[1766746144530,2.16389716,123.89,123.84,71.73872962]
[1766746146332,2.16389716,123.89,123.84,95.96647038]
[1766746148034,2.16389716,123.89,123.84,34.46647038]
[1766746151733,24.9554552,123.9,123.84,34.46647038]
[1766746152933,8.07062168,123.91,123.86,2.16389716]
[1766746153138,10.23451884,123.91,123.86,2.16389716]
[1766746153341,2.16389716,123.9,123.85,10.23810605]
[1766746154017,2.16389716,123.9,123.85,34.46389035]
[1766746156873,2.16389716,123.9,123.85,32.29999319]
[1766746158671,2.16389716,123.9,123.85,34.46389035]
[1766746158971,2.16389716,123.9,123.85,10.23810605]
[1766746159177,2.16389716,123.9,123.86,8.07062168]
[1766746159873,2.16389716,123.9,123.86,16.14384571]
[1766746162578,2.16389716,123.9,123.86,8.07322403]
[1766746167082,8.07062168,123.91,123.86,8.07322403]
[1766746167283,2.16389716,123.9,123.86,8.07322403]
[1766746168383,8.07062168,123.91,123.86,8.07322403]
[1766746168680,2.16389716,123.9,123.86,8.07322403]
[1766746171764,10.23508437,123.9,123.85,69.57402871]
[1766746172277,2.16389716,123.9,123.85,69.57402871]
[1766746175777,14.95348288,123.92,123.85,89.75973722]
[1766746175983,14.95348288,123.92,123.85,93.14073682]
[1766746175984,8.82157047,123.91,123.85,93.14073682]
[1766746176181,3.3809996,123.91,123.85,93.14073682]
[1766746179684,11.45176183,123.91,123.85,93.14073682]
[1766746180879,11.45176183,123.91,123.85,8.07402871]
[1766746181182,3.3809996,123.89,123.84,69.57474711]
[1766746181561,8.07076223,123.91,123.86,3.3809996]
[1766746183283,8.07076223,123.91,123.86,11.45444247]
[1766746185587,11.45176183,123.91,123.86,11.45444247]
[1766746187499,18.33446017,123.92,123.86,11.45444247]
[1766746187800,5.44640176,123.91,123.86,11.45444247]
[1766746191592,18.33446017,123.92,123.86,11.45444247]
[1766746191990,18.33446017,123.92,123.86,72.95444247]
[1766746192370,5.44689614,123.91,123.86,72.95444247]
[1766746192572,18.33446017,123.92,123.86,72.95444247]
[1766746193592,5.44701395,123.91,123.86,72.95444247]
[1766746194595,18.33446017,123.92,123.86,72.95444247]
[1766746194769,5.44721744,123.91,123.86,72.95444247]
[1766746194970,18.33446017,123.92,123.86,72.95444247]
[1766746195172,5.44721924,123.91,123.86,72.95444247]
[1766746195493,18.33446017,123.92,123.86,72.95444247]
[1766746195790,5.44747809,123.91,123.86,72.95444247]
[1766746195996,18.33446017,123.92,123.86,72.95444247]
[1766746196176,5.44747809,123.91,123.86,72.95444247]
[1766746196494,18.33446017,123.92,123.86,72.95444247]
[1766746197192,5.44780925,123.91,123.86,72.95444247]
[1766746197689,8.82880885,123.91,123.86,72.95444247]
[1766746197985,3.3809996,123.91,123.86,72.95444247]
[1766746200279,3.3809996,123.91,123.86,69.57344287]
[1766746200998,3.3809996,123.91,123.86,84.29344287]
[1766746203803,3.3809996,123.9,123.86,22.79344287]
[1766746205204,8.07045691,123.91,123.86,22.79344287]
[1766746205405,3.3809996,123.9,123.86,22.79344287]
[1766746206204,8.07045691,123.91,123.86,22.79344287]
[1766746206383,3.3809996,123.9,123.86,22.79344287]
[1766746207100,8.07045691,123.91,123.86,22.79344287]
[1766746207312,8.07045691,123.91,123.86,8.07344287]
[1766746207602,11.45145651,123.91,123.86,8.07344287]
[1766746209109,3.3809996,123.9,123.85,28.25999191]
[1766746209282,3.3809996,123.9,123.85,8.0742834]
[1766746211482,3.3809996,123.89,123.85,8.0742834]
[1766746218009,3.3809996,123.9,123.85,8.0742834]
[1766746220214,3.3809996,123.9,123.85,11.455283]
[1766746224409,3.3809996,123.9,123.85,8.0742834]
[1766746224713,3.3809996,123.9,123.85,11.455283]
[1766746229516,8.07045691,123.91,123.85,11.455283]
[1766746229723,8.82911464,123.9,123.85,11.455283]
[1766746230022,3.3809996,123.9,123.85,11.455283]
[1766746230208,3.3809996,123.9,123.85,8.0742834]
[1766746233123,3.3809996,123.9,123.85,28.25999191]
[1766746233421,3.3809996,123.9,123.85,31.64099151]
[1766746234529,3.3809996,123.9,123.85,28.25999191]
[1766746235027,3.3809996,123.9,123.85,31.64099151]
[1766746235930,2.1639687,123.9,123.85,30.42396061]
[1766746238231,2.1639687,123.89,123.84,69.57487746]
[1766746238428,2.1639687,123.86,123.81,2.1639687]
[1766746238613,2.1639687,123.85,123.82,8.07615101]
[1766746238823,14.72,123.89,123.79,40.60619207]
[1766746238824,2.1639687,123.84,123.79,40.60619207]
[1766746239022,2.1639687,123.84,123.8,8.07735805]
[1766746239941,2.1639687,123.82,123.76,22.36349718]
[1766746240131,2.1639687,123.78,123.73,23.88735607]
[1766746240436,2.1639687,123.78,123.73,2.3639687]
[1766746240755,2.1639687,123.78,123.73,0.2]
[1766746240910,2.1639687,123.78,123.74,8.08099598]
[1766746242935,2.1639687,123.77,123.73,0.2]
[1766746243126,2.1639687,123.76,123.73,0.2]
[1766746243524,2.1639687,123.75,123.73,0.2]
[1766746245557,8.07884957,123.78,123.73,0.2]
[1766746245733,10.24281827,123.78,123.73,2.3639687]
[1766746245936,2.1639687,123.77,123.73,0.2]
[1766746246749,2.1639687,123.76,123.73,0.2]
[1766746248448,20.19549236,123.79,123.73,0.2]
[1766746248449,2.1639687,123.75,123.73,0.2]
[1766746251148,8.0786363,123.79,123.73,8.28174069]
[1766746251450,2.1639687,123.78,123.73,69.78174069]
[1766746251750,10.242605,123.79,123.73,69.78174069]
[1766746253554,10.242605,123.79,123.73,71.94570939]
[1766746253753,8.0786363,123.79,123.73,71.94570939]
[1766746253951,10.242605,123.79,123.73,71.94570939]
[1766746261263,8.0786363,123.79,123.75,2.1639687]
[1766746262171,10.242605,123.79,123.74,16.9039687]
[1766746262388,10.242605,123.79,123.74,24.98528164]
[1766746262682,2.1639687,123.78,123.74,14.74]
[1766746262962,8.0786363,123.79,123.73,72.13767296]
[1766746262963,2.1639687,123.77,123.73,72.13767296]
[1766746264061,10.24351916,123.77,123.73,72.13767296]
[1766746265474,10.24351916,123.77,123.73,10.63767296]
[1766746271579,8.07955046,123.77,123.73,10.63767296]
[1766746273089,10.24351916,123.77,123.73,10.63767296]
[1766746273960,10.24351916,123.77,123.73,18.71977984]
[1766746274294,2.1639687,123.77,123.73,18.71977984]
[1766746274688,10.24309,123.78,123.73,18.71977984]
[1766746281589,2.1639687,123.76,123.73,0.2]
[1766746282701,2.1639687,123.74,123.72,0.2]
[1766746283019,2.1639687,123.73,123.69,32.83582305]
[1766746283714,2.1639687,123.73,123.69,40.9203914]
[1766746284087,8.08193537,123.74,123.69,40.9203914]
[1766746284288,10.24590407,123.74,123.69,43.0843601]
[1766746285913,10.24525939,123.75,123.7,2.1639687]
[1766746286420,10.24525939,123.75,123.69,43.0843601]
[1766746287316,10.24525939,123.75,123.7,10.24776762]
[1766746288701,22.82043751,123.76,123.71,2.1639687]
[1766746288901,8.08043751,123.76,123.71,2.1639687]
[1766746289626,8.08043751,123.76,123.72,2.1639687]
[1766746291741,8.08043751,123.76,123.71,10.24713687]
[1766746296739,8.08043751,123.76,123.71,8.08316817]
[1766746296941,0.7,123.75,123.72,0.72]
[1766746300155,8.07978762,123.77,123.72,8.08265032]
[1766746300342,0.7,123.76,123.73,0.72]
[1766746300529,4.08889389,123.76,123.73,0.72]
[1766746300734,0.7,123.75,123.73,0.72]
[1766746301749,0.7,123.75,123.72,8.80265032]
[1766746302962,12.16868151,123.77,123.74,0.7]
[1766746303752,0.7,123.78,123.75,0.7]
[1766746310764,0.69,123.77,123.75,0.7]
[1766746312769,4.07889389,123.78,123.75,0.7]
[1766746314071,0.69,123.77,123.75,0.7]
[1766746315046,0.69,123.77,123.74,8.74126224]
[1766746316165,0.69,123.77,123.74,8.08126224]
[1766746316373,0.69,123.77,123.74,8.74126224]
[1766746316584,0.69,123.77,123.75,0.66]
[1766746322077,14.74,123.81,123.75,0.66]
[1766746322255,0.69,123.79,123.76,0.66]
[1766746326857,11.46654732,123.8,123.75,8.08066378]
[1766746330795,0.69,123.79,123.76,0.66]
[1766746336003,0.69,123.79,123.76,8.73997828]
[1766746336199,0.69,123.8,123.77,0.71]
[1766746338297,3.38889389,123.79,123.74,75.32656685]
[1766746338496,0.69,123.78,123.75,0.71]
[1766746338706,0.69,123.77,123.75,0.71]
[1766746340710,0.69,123.77,123.75,8.79041791]
[1766746341108,0.69,123.78,123.75,8.79041791]
[1766746345585,0.69,123.78,123.76,0.71]
[1766746348816,0.69,123.78,123.75,8.08041791]
[1766746349910,0.69,123.81,123.76,3.38889389]
[1766746350114,0.69,123.8,123.77,0.71]
[1766746352721,0.69,123.8,123.77,8.78938414]
[1766746357330,0.69,123.8,123.77,0.71]
[1766746360027,0.69,123.82,123.79,0.71]
[1766746362815,2.85715984,123.82,123.79,0.71]
[1766746363235,0.68,123.81,123.78,8.77859742]
[1766746366648,0.68,123.81,123.78,8.07859742]
[1766746366824,0.68,123.81,123.79,0.69]
[1766746367145,0.7,123.8,123.77,85.00928642]
[1766746368353,0.7,123.8,123.77,84.31928642]
[1766746368644,0.7,123.8,123.78,0.69]
[1766746372749,10.24356729,123.82,123.77,22.81928642]
[1766746376754,0.7,123.81,123.77,22.81928642]
[1766746376955,0.7,123.81,123.78,0.69]
[1766746380734,10.24356729,123.82,123.79,0.69]
[1766746380735,2.16715984,123.82,123.79,0.69]
[1766746380934,0.7,123.82,123.79,0.69]
[1766746382362,8.77631538,123.82,123.79,0.69]
[1766746382537,0.7,123.81,123.78,8.7686351]
[1766746382952,0.7,123.81,123.78,0.69]
[1766746388388,8.77696335,123.81,123.78,0.69]
[1766746388564,10.94412319,123.81,123.78,0.69]